{"text_format":"3","workbook":"xlsx","n_sheets":14,"sheets":["tips","sammendrag","jan.","feb.","mar.","apr.","mai","jun.","jul.","aug.","sep.","okt.","nov.","des."],"not_rendered":{"charts":1,"defined_names":27},"read":"whole","date_system":"1900"}

{"sheet":"tips","index":0,"n_rows":18,"n_cols":1,"rows_kept":18}
["MALTIPS"]
["Er det en enkel måte å hoppe mellom sammendragsark for utgiftstrender og månedlige utgiftsdetaljer på?"]
["Hvis du vil gå raskt til en bestemt måneds utgifter, klikk den tilknyttede navigasjonskoblingen ovenfor diagrammet, for eksempel Jan.-navigasjonskoblingen i B2. Hvis du vil gå tilbake til regnearket for utgiftstrender, klikker du Sammendrag-navigasjonskoblingen i D1. "]
["Hvis du vil gå tilbake til tips-regnearket, velger du N2 i regnearket for sammendrag. Fra alle månedsregnearkene kan du velge E1."]
["Hvordan legger jeg til en ny utgiftstype til utgiftssammendraget, eller nye månedlige utgifter?"]
["Utgiftssammendraget nedenfor diagrammet og utgiftsdetaljene for hver måned er Excel-tabeller. Hvis du vil legge til nye rader i en Excel-tabell, gjør du ett av følgende:"]
[{"$f":"ROW(A1)&\". Hvis tabellen ikke har en totalrad, begynn å skrive inn under tabellen, og den utvides automatisk når du trykker ENTER eller TAB.\"","v":"1. Hvis tabellen ikke har en totalrad, begynn å skrive inn under tabellen, og den utvides automatisk når du trykker ENTER eller TAB."}]
[{"$f":"ROW(A2)&\". Plasser cellepekeren i den siste cellen over totalraden, for eksempel totalsummen for den siste utgiften, og trykk deretter TAB.\"","v":"2. Plasser cellepekeren i den siste cellen over totalraden, for eksempel totalsummen for den siste utgiften, og trykk deretter TAB."}]
[{"$f":"ROW(A3)&\". Høyreklikk i tabellen og på hurtigmenyen, pek på Sett inn og klikk deretter Tabellrader over eller Tabellrader under.\"","v":"3. Høyreklikk i tabellen og på hurtigmenyen, pek på Sett inn og klikk deretter Tabellrader over eller Tabellrader under."}]
[{"$f":"ROW(A4)&\". Plasserer musen på skaleringshåndtaket i tabellen i det nedre høyre hjørnet av tabellen, og dra for å øke antall tilgjengelige tabellrader.\"","v":"4. Plasserer musen på skaleringshåndtaket i tabellen i det nedre høyre hjørnet av tabellen, og dra for å øke antall tilgjengelige tabellrader."}]
["Gå til Utgifter-kolonnen og angi utgiften i sammendrag-regnearket i ExpensESummary-tabellen."]
["Legg til utgiftsbeløpet for hver utgiftstype i regnearket for den måneden utgiften gjelder."]
["For eksempel: «Utgift 1» forekommer i månedene jan. til jun. og des. "]
[{"$f":"ROW(A1)&\". Utgift 1 angis i regnearket for sammendrag under Utgift i ExpenseSummary-tabellen (som tittel for utgiftstypen)\"","v":"1. Utgift 1 angis i regnearket for sammendrag under Utgift i ExpenseSummary-tabellen (som tittel for utgiftstypen)"}]
[{"$f":"ROW(A2)&\". Angi beløpet for utgiften i det tilsvarende regnearket for hver måned utgiften oppstår i.\"","v":"2. Angi beløpet for utgiften i det tilsvarende regnearket for hver måned utgiften oppstår i."}]
[{"$f":"ROW(A3)&\". Utgiftstypen fra regnearket ExpenseSummary oppretter en kategoriliste for kategorikolonnen i regnearket for hver måned.\"","v":"3. Utgiftstypen fra regnearket ExpenseSummary oppretter en kategoriliste for kategorikolonnen i regnearket for hver måned."}]
[{"$f":"ROW(A4)&\". Bruk kategorilisten i kategorikolonnen til å velge den tilsvarende utgiftstypen for det angitte utgiftsbeløpet\"","v":"4. Bruk kategorilisten i kategorikolonnen til å velge den tilsvarende utgiftstypen for det angitte utgiftsbeløpet"}]
[{"$f":"ROW(A5)&\". Hvis du vil legge til nye utgifter for en måned, legger du til en ny rad i ExpenseSummary-tabellen i regnearket for sammendrag, og deretter angir du tilsvarende utgiftsdetaljer i regnearket for måneden utgiftsdetaljene gjelder for.\"","v":"5. Hvis du vil legge til nye utgifter for en måned, legger du til en ny rad i ExpenseSummary-tabellen i regnearket for sammendrag, og deretter angir du tilsvarende utgiftsdetaljer i regnearket for måneden utgiftsdetaljene gjelder for."}]

{"sheet":"sammendrag","index":1,"n_rows":10,"n_cols":15,"rows_kept":10}
["UTGIFTSTRENDER"]
[null,"Jan.","Feb.","Mar.","Apr.","Mai.","Jun.","Jul.","Aug.","Sep.","Okt.","Nov.","Des.","Tips"]
[]
["Utgifter","Jan.","Feb.","Mar.","Apr.","Mai","Jun.","Jul.","Aug.","Sep.","Okt.","Nov.","Des.","Totalt","Trend"]
["Utgift 1",{"$f":"SUMIFS(ExpJan.[Beløp],ExpJan.[Kategori],Utgiftssammendrag[[#This Row],[Utgifter]])","v":{"v":33,"d":"33.00"}},{"$f":"SUMIFS(ExpFeb.[Beløp],ExpFeb.[Kategori],Utgiftssammendrag[[#This Row],[Utgifter]])","v":{"v":375,"d":"375.00"}},{"$f":"SUMIFS(ExpMar.[Beløp],ExpMar.[Kategori],Utgiftssammendrag[[#This Row],[Utgifter]])","v":{"v":33,"d":"33.00"}},{"$f":"SUMIFS(ExpApr.[Beløp],ExpApr.[Kategori],Utgiftssammendrag[[#This Row],[Utgifter]])","v":{"v":45,"d":"45.00"}},{"$f":"SUMIFS(ExpMai.[Beløp],ExpMai.[Kategori],Utgiftssammendrag[[#This Row],[Utgifter]])","v":{"v":375,"d":"375.00"}},{"$f":"SUMIFS(ExpJun.[Beløp],ExpJun.[Kategori],Utgiftssammendrag[[#This Row],[Utgifter]])","v":{"v":201,"d":"201.00"}},{"$f":"SUMIFS(ExpJul.[Beløp],ExpJul.[Kategori],Utgiftssammendrag[[#This Row],[Utgifter]])","v":{"v":0,"d":"0.00"}},{"$f":"SUMIFS(ExpAug.[Beløp],ExpAug.[Kategori],Utgiftssammendrag[[#This Row],[Utgifter]])","v":{"v":0,"d":"0.00"}},{"$f":"SUMIFS(ExpSep.[Beløp],ExpSep.[Kategori],Utgiftssammendrag[[#This Row],[Utgifter]])","v":{"v":0,"d":"0.00"}},{"$f":"SUMIFS(ExpOkt.[Beløp],ExpOkt.[Kategori],Utgiftssammendrag[[#This Row],[Utgifter]])","v":{"v":0,"d":"0.00"}},{"$f":"SUMIFS(ExpNov.[Beløp],ExpNov.[Kategori],Utgiftssammendrag[[#This Row],[Utgifter]])","v":{"v":0,"d":"0.00"}},{"$f":"SUMIFS(ExpDes.[Beløp],ExpDes.[Kategori],Utgiftssammendrag[[#This Row],[Utgifter]])","v":{"v":201,"d":"201.00"}},{"$f":"SUM(Utgiftssammendrag[[#This Row],[Jan.]:[Des.]])","v":{"v":1263,"d":"1,263.00"}}]
["Utgift 2",{"$f":"SUMIFS(ExpJan.[Beløp],ExpJan.[Kategori],Utgiftssammendrag[[#This Row],[Utgifter]])","v":{"v":238,"d":"238.00"}},{"$f":"SUMIFS(ExpFeb.[Beløp],ExpFeb.[Kategori],Utgiftssammendrag[[#This Row],[Utgifter]])","v":{"v":238,"d":"238.00"}},{"$f":"SUMIFS(ExpMar.[Beløp],ExpMar.[Kategori],Utgiftssammendrag[[#This Row],[Utgifter]])","v":{"v":238,"d":"238.00"}},{"$f":"SUMIFS(ExpApr.[Beløp],ExpApr.[Kategori],Utgiftssammendrag[[#This Row],[Utgifter]])","v":{"v":123,"d":"123.00"}},{"$f":"SUMIFS(ExpMai.[Beløp],ExpMai.[Kategori],Utgiftssammendrag[[#This Row],[Utgifter]])","v":{"v":111,"d":"111.00"}},{"$f":"SUMIFS(ExpJun.[Beløp],ExpJun.[Kategori],Utgiftssammendrag[[#This Row],[Utgifter]])","v":{"v":98,"d":"98.00"}},{"$f":"SUMIFS(ExpJul.[Beløp],ExpJul.[Kategori],Utgiftssammendrag[[#This Row],[Utgifter]])","v":{"v":0,"d":"0.00"}},{"$f":"SUMIFS(ExpAug.[Beløp],ExpAug.[Kategori],Utgiftssammendrag[[#This Row],[Utgifter]])","v":{"v":0,"d":"0.00"}},{"$f":"SUMIFS(ExpSep.[Beløp],ExpSep.[Kategori],Utgiftssammendrag[[#This Row],[Utgifter]])","v":{"v":0,"d":"0.00"}},{"$f":"SUMIFS(ExpOkt.[Beløp],ExpOkt.[Kategori],Utgiftssammendrag[[#This Row],[Utgifter]])","v":{"v":0,"d":"0.00"}},{"$f":"SUMIFS(ExpNov.[Beløp],ExpNov.[Kategori],Utgiftssammendrag[[#This Row],[Utgifter]])","v":{"v":0,"d":"0.00"}},{"$f":"SUMIFS(ExpDes.[Beløp],ExpDes.[Kategori],Utgiftssammendrag[[#This Row],[Utgifter]])","v":{"v":440,"d":"440.00"}},{"$f":"SUM(Utgiftssammendrag[[#This Row],[Jan.]:[Des.]])","v":{"v":1486,"d":"1,486.00"}}]
["Utgift 3",{"$f":"SUMIFS(ExpJan.[Beløp],ExpJan.[Kategori],Utgiftssammendrag[[#This Row],[Utgifter]])","v":{"v":110,"d":"110.00"}},{"$f":"SUMIFS(ExpFeb.[Beløp],ExpFeb.[Kategori],Utgiftssammendrag[[#This Row],[Utgifter]])","v":{"v":110,"d":"110.00"}},{"$f":"SUMIFS(ExpMar.[Beløp],ExpMar.[Kategori],Utgiftssammendrag[[#This Row],[Utgifter]])","v":{"v":110,"d":"110.00"}},{"$f":"SUMIFS(ExpApr.[Beløp],ExpApr.[Kategori],Utgiftssammendrag[[#This Row],[Utgifter]])","v":{"v":125,"d":"125.00"}},{"$f":"SUMIFS(ExpMai.[Beløp],ExpMai.[Kategori],Utgiftssammendrag[[#This Row],[Utgifter]])","v":{"v":333,"d":"333.00"}},{"$f":"SUMIFS(ExpJun.[Beløp],ExpJun.[Kategori],Utgiftssammendrag[[#This Row],[Utgifter]])","v":{"v":122,"d":"122.00"}},{"$f":"SUMIFS(ExpJul.[Beløp],ExpJul.[Kategori],Utgiftssammendrag[[#This Row],[Utgifter]])","v":{"v":0,"d":"0.00"}},{"$f":"SUMIFS(ExpAug.[Beløp],ExpAug.[Kategori],Utgiftssammendrag[[#This Row],[Utgifter]])","v":{"v":0,"d":"0.00"}},{"$f":"SUMIFS(ExpSep.[Beløp],ExpSep.[Kategori],Utgiftssammendrag[[#This Row],[Utgifter]])","v":{"v":0,"d":"0.00"}},{"$f":"SUMIFS(ExpOkt.[Beløp],ExpOkt.[Kategori],Utgiftssammendrag[[#This Row],[Utgifter]])","v":{"v":0,"d":"0.00"}},{"$f":"SUMIFS(ExpNov.[Beløp],ExpNov.[Kategori],Utgiftssammendrag[[#This Row],[Utgifter]])","v":{"v":0,"d":"0.00"}},{"$f":"SUMIFS(ExpDes.[Beløp],ExpDes.[Kategori],Utgiftssammendrag[[#This Row],[Utgifter]])","v":{"v":122,"d":"122.00"}},{"$f":"SUM(Utgiftssammendrag[[#This Row],[Jan.]:[Des.]])","v":{"v":1032,"d":"1,032.00"}}]
["Utgift 4",{"$f":"SUMIFS(ExpJan.[Beløp],ExpJan.[Kategori],Utgiftssammendrag[[#This Row],[Utgifter]])","v":{"v":426,"d":"426.00"}},{"$f":"SUMIFS(ExpFeb.[Beløp],ExpFeb.[Kategori],Utgiftssammendrag[[#This Row],[Utgifter]])","v":{"v":84,"d":"84.00"}},{"$f":"SUMIFS(ExpMar.[Beløp],ExpMar.[Kategori],Utgiftssammendrag[[#This Row],[Utgifter]])","v":{"v":84,"d":"84.00"}},{"$f":"SUMIFS(ExpApr.[Beløp],ExpApr.[Kategori],Utgiftssammendrag[[#This Row],[Utgifter]])","v":{"v":426,"d":"426.00"}},{"$f":"SUMIFS(ExpMai.[Beløp],ExpMai.[Kategori],Utgiftssammendrag[[#This Row],[Utgifter]])","v":{"v":125,"d":"125.00"}},{"$f":"SUMIFS(ExpJun.[Beløp],ExpJun.[Kategori],Utgiftssammendrag[[#This Row],[Utgifter]])","v":{"v":187,"d":"187.00"}},{"$f":"SUMIFS(ExpJul.[Beløp],ExpJul.[Kategori],Utgiftssammendrag[[#This Row],[Utgifter]])","v":{"v":0,"d":"0.00"}},{"$f":"SUMIFS(ExpAug.[Beløp],ExpAug.[Kategori],Utgiftssammendrag[[#This Row],[Utgifter]])","v":{"v":0,"d":"0.00"}},{"$f":"SUMIFS(ExpSep.[Beløp],ExpSep.[Kategori],Utgiftssammendrag[[#This Row],[Utgifter]])","v":{"v":0,"d":"0.00"}},{"$f":"SUMIFS(ExpOkt.[Beløp],ExpOkt.[Kategori],Utgiftssammendrag[[#This Row],[Utgifter]])","v":{"v":0,"d":"0.00"}},{"$f":"SUMIFS(ExpNov.[Beløp],ExpNov.[Kategori],Utgiftssammendrag[[#This Row],[Utgifter]])","v":{"v":0,"d":"0.00"}},{"$f":"SUMIFS(ExpDes.[Beløp],ExpDes.[Kategori],Utgiftssammendrag[[#This Row],[Utgifter]])","v":{"v":187,"d":"187.00"}},{"$f":"SUM(Utgiftssammendrag[[#This Row],[Jan.]:[Des.]])","v":{"v":1519,"d":"1,519.00"}}]
["Utgift 5",{"$f":"SUMIFS(ExpJan.[Beløp],ExpJan.[Kategori],Utgiftssammendrag[[#This Row],[Utgifter]])","v":{"v":54,"d":"54.00"}},{"$f":"SUMIFS(ExpFeb.[Beløp],ExpFeb.[Kategori],Utgiftssammendrag[[#This Row],[Utgifter]])","v":{"v":54,"d":"54.00"}},{"$f":"SUMIFS(ExpMar.[Beløp],ExpMar.[Kategori],Utgiftssammendrag[[#This Row],[Utgifter]])","v":{"v":109,"d":"109.00"}},{"$f":"SUMIFS(ExpApr.[Beløp],ExpApr.[Kategori],Utgiftssammendrag[[#This Row],[Utgifter]])","v":{"v":98,"d":"98.00"}},{"$f":"SUMIFS(ExpMai.[Beløp],ExpMai.[Kategori],Utgiftssammendrag[[#This Row],[Utgifter]])","v":{"v":33,"d":"33.00"}},{"$f":"SUMIFS(ExpJun.[Beløp],ExpJun.[Kategori],Utgiftssammendrag[[#This Row],[Utgifter]])","v":{"v":441,"d":"441.00"}},{"$f":"SUMIFS(ExpJul.[Beløp],ExpJul.[Kategori],Utgiftssammendrag[[#This Row],[Utgifter]])","v":{"v":0,"d":"0.00"}},{"$f":"SUMIFS(ExpAug.[Beløp],ExpAug.[Kategori],Utgiftssammendrag[[#This Row],[Utgifter]])","v":{"v":0,"d":"0.00"}},{"$f":"SUMIFS(ExpSep.[Beløp],ExpSep.[Kategori],Utgiftssammendrag[[#This Row],[Utgifter]])","v":{"v":0,"d":"0.00"}},{"$f":"SUMIFS(ExpOkt.[Beløp],ExpOkt.[Kategori],Utgiftssammendrag[[#This Row],[Utgifter]])","v":{"v":0,"d":"0.00"}},{"$f":"SUMIFS(ExpNov.[Beløp],ExpNov.[Kategori],Utgiftssammendrag[[#This Row],[Utgifter]])","v":{"v":0,"d":"0.00"}},{"$f":"SUMIFS(ExpDes.[Beløp],ExpDes.[Kategori],Utgiftssammendrag[[#This Row],[Utgifter]])","v":{"v":99,"d":"99.00"}},{"$f":"SUM(Utgiftssammendrag[[#This Row],[Jan.]:[Des.]])","v":{"v":888,"d":"888.00"}}]
["Totalt",{"$f":"SUBTOTAL(109,Utgiftssammendrag[Jan.])","v":{"v":861,"d":"861.00"}},{"$f":"SUBTOTAL(109,Utgiftssammendrag[Feb.])","v":{"v":861,"d":"861.00"}},{"$f":"SUBTOTAL(109,Utgiftssammendrag[Mar.])","v":{"v":574,"d":"574.00"}},{"$f":"SUBTOTAL(109,E5:E9)","v":{"v":817,"d":"817.00"}},{"v":977,"d":"977.00"},{"v":1049,"d":"1,049.00"},{"v":0,"d":"0.00"},{"v":0,"d":"0.00"},{"v":0,"d":"0.00"},{"v":0,"d":"0.00"},{"v":0,"d":"0.00"},{"v":1049,"d":"1,049.00"},{"v":6188,"d":"6,188.00"}]

{"sheet":"jan.","index":2,"n_rows":9,"n_cols":5,"rows_kept":9,"merged":[[0,0,0,2]]}
["UTGIFTER I JANUAR",null,null,"Sammendrag","Tips"]
["Dato","Kjøpsordrenummer","Beløp","Kategori","Beskrivelse"]
[{"$f":"DATE(YEAR(TODAY()),1,4)","v":"2017-01-04"},"A-12345",{"v":33,"d":"33.00"},"Utgift 1","Utstyr"]
[{"$f":"DATE(YEAR(TODAY()),1,5)","v":"2017-01-05"},"A-12346",{"v":238,"d":"238.00"},"Utgift 2"]
[null,null,{"v":342,"d":"342.00"},"Utgift 4"]
[null,null,{"v":110,"d":"110.00"},"Utgift 3"]
[null,null,{"v":84,"d":"84.00"},"Utgift 4"]
[null,null,{"v":54,"d":"54.00"},"Utgift 5"]
["Totalt",null,{"$f":"SUBTOTAL(109,ExpJan.[Beløp])","v":{"v":861,"d":"861.00"}}]

{"sheet":"feb.","index":3,"n_rows":9,"n_cols":5,"rows_kept":9,"merged":[[0,0,0,2]]}
["UTGIFTER I FEBRUAR",null,null,"Sammendrag","Tips"]
["Dato","Kjøpsordrenummer","Beløp","Kategori","Beskrivelse"]
[{"$f":"DATE(YEAR(TODAY()),2,3)","v":"2017-02-03"},"A-12345",{"v":33,"d":"33.00"},"Utgift 1","Utstyr"]
[{"$f":"DATE(YEAR(TODAY()),2,4)","v":"2017-02-04"},"A-12346",{"v":238,"d":"238.00"},"Utgift 2"]
[null,null,{"v":342,"d":"342.00"},"Utgift 1"]
[null,null,{"v":110,"d":"110.00"},"Utgift 3"]
[null,null,{"v":84,"d":"84.00"},"Utgift 4"]
[null,null,{"v":54,"d":"54.00"},"Utgift 5"]
["Totalt",null,{"$f":"SUBTOTAL(109,ExpFeb.[Beløp])","v":{"v":861,"d":"861.00"}}]

{"sheet":"mar.","index":4,"n_rows":9,"n_cols":5,"rows_kept":9,"merged":[[0,0,0,2]]}
["UTGIFTER I MARS",null,null,"Sammendrag","Tips"]
["Dato","Kjøpsordrenummer","Beløp","Kategori","Beskrivelse"]
[{"$f":"DATE(YEAR(TODAY()),3,5)","v":"2017-03-05"},"A-12345",{"v":33,"d":"33.00"},"Utgift 1","Utstyr"]
[{"$f":"DATE(YEAR(TODAY()),3,6)","v":"2017-03-06"},"A-12346",{"v":238,"d":"238.00"},"Utgift 2"]
[null,null,{"v":55,"d":"55.00"},"Utgift 5"]
[null,null,{"v":110,"d":"110.00"},"Utgift 3"]
[null,null,{"v":84,"d":"84.00"},"Utgift 4"]
[null,null,{"v":54,"d":"54.00"},"Utgift 5"]
["Totalt",null,{"$f":"SUBTOTAL(109,ExpMar.[Beløp])","v":{"v":574,"d":"574.00"}}]

{"sheet":"apr.","index":5,"n_rows":9,"n_cols":5,"rows_kept":9,"merged":[[0,0,0,2]]}
["UTGIFTER I APRIL",null,null,"Sammendrag","Tips"]
["Dato","Kjøpsordrenummer","Beløp","Kategori","Beskrivelse"]
[{"$f":"DATE(YEAR(TODAY()),4,4)","v":"2017-04-04"},"A-12345",{"v":45,"d":"45.00"},"Utgift 1","Utstyr"]
[{"$f":"DATE(YEAR(TODAY()),4,8)","v":"2017-04-08"},"A-12346",{"v":123,"d":"123.00"},"Utgift 2"]
[null,null,{"v":342,"d":"342.00"},"Utgift 4"]
[null,null,{"v":125,"d":"125.00"},"Utgift 3"]
[null,null,{"v":84,"d":"84.00"},"Utgift 4"]
[null,null,{"v":98,"d":"98.00"},"Utgift 5"]
["Totalt",null,{"$f":"SUBTOTAL(109,ExpApr.[Beløp])","v":{"v":817,"d":"817.00"}}]

{"sheet":"mai","index":6,"n_rows":9,"n_cols":5,"rows_kept":9,"merged":[[0,0,0,2]]}
["UTGIFTER I MAI",null,null,"Sammendrag","Tips"]
["Dato","Kjøpsordrenummer","Beløp","Kategori","Beskrivelse"]
[{"$f":"DATE(YEAR(TODAY()),5,3)","v":"2017-05-03"},"A-12345",{"v":33,"d":"33.00"},"Utgift 1","Utstyr"]
[{"$f":"DATE(YEAR(TODAY()),5,8)","v":"2017-05-08"},"A-12346",{"v":111,"d":"111.00"},"Utgift 2"]
[null,null,{"v":342,"d":"342.00"},"Utgift 1"]
[null,null,{"v":333,"d":"333.00"},"Utgift 3"]
[null,null,{"v":125,"d":"125.00"},"Utgift 4"]
[null,null,{"v":33,"d":"33.00"},"Utgift 5"]
["Totalt",null,{"$f":"SUBTOTAL(109,ExpMai.[Beløp])","v":{"v":977,"d":"977.00"}}]

{"sheet":"jun.","index":7,"n_rows":9,"n_cols":5,"rows_kept":9,"merged":[[0,0,0,2]]}
["UTGIFTER I JUNI",null,null,"Sammendrag","Tips"]
["Dato","Kjøpsordrenummer","Beløp","Kategori","Beskrivelse"]
[{"$f":"DATE(YEAR(TODAY()),6,7)","v":"2017-06-07"},"A-12345",{"v":201,"d":"201.00"},"Utgift 1","Utstyr"]
[{"$f":"DATE(YEAR(TODAY()),6,8)","v":"2017-06-08"},"A-12346",{"v":98,"d":"98.00"},"Utgift 2"]
[null,null,{"v":342,"d":"342.00"},"Utgift 5"]
[null,null,{"v":122,"d":"122.00"},"Utgift 3"]
[null,null,{"v":187,"d":"187.00"},"Utgift 4"]
[null,null,{"v":99,"d":"99.00"},"Utgift 5"]
["Totalt",null,{"$f":"SUBTOTAL(109,ExpJun.[Beløp])","v":{"v":1049,"d":"1,049.00"}}]

{"sheet":"jul.","index":8,"n_rows":9,"n_cols":5,"rows_kept":9,"merged":[[0,0,0,2]]}
["UTGIFTER I JULI",null,null,"Sammendrag","Tips"]
["Dato","Kjøpsordrenummer","Beløp","Kategori","Beskrivelse"]
[{"$f":"DATE(YEAR(TODAY()),7,9)","v":"2017-07-09"},"A-12345",null,"Utgift 1","Utstyr"]
[{"$f":"DATE(YEAR(TODAY()),7,14)","v":"2017-07-14"},"A-12346",null,"Utgift 2"]
[{"$nulls":3},"Utgift 2"]
[{"$nulls":3},"Utgift 3"]
[{"$nulls":3},"Utgift 4"]
[{"$nulls":3},"Utgift 5"]
["Totalt",null,{"$f":"SUBTOTAL(109,ExpJul.[Beløp])","v":{"v":0,"d":"0.00"}}]

{"sheet":"aug.","index":9,"n_rows":9,"n_cols":5,"rows_kept":9,"merged":[[0,0,0,2]]}
["UTGIFTER I AUGUST",null,null,"Sammendrag","Tips"]
["Dato","Kjøpsordrenummer","Beløp","Kategori","Beskrivelse"]
[{"$f":"DATE(YEAR(TODAY()),8,8)","v":"2017-08-08"},"A-12345",null,"Utgift 1","Utstyr"]
[{"$f":"DATE(YEAR(TODAY()),8,9)","v":"2017-08-09"},"A-12346",null,"Utgift 2"]
[{"$nulls":3},"Utgift 2"]
[{"$nulls":3},"Utgift 3"]
[{"$nulls":3},"Utgift 4"]
[{"$nulls":3},"Utgift 5"]
["Totalt",null,{"$f":"SUBTOTAL(109,ExpAug.[Beløp])","v":{"v":0,"d":"0.00"}}]

{"sheet":"sep.","index":10,"n_rows":9,"n_cols":5,"rows_kept":9,"merged":[[0,0,0,2]]}
["UTGIFTER I SEPTEMBER",null,null,"Sammendrag","Tips"]
["Dato","Kjøpsordrenummer","Beløp","Kategori","Beskrivelse"]
[{"$f":"DATE(YEAR(TODAY()),9,9)","v":"2017-09-09"},"A-12345",null,"Utgift 1","Utstyr"]
[{"$f":"DATE(YEAR(TODAY()),9,15)","v":"2017-09-15"},"A-12346",null,"Utgift 2"]
[{"$nulls":3},"Utgift 2"]
[{"$nulls":3},"Utgift 3"]
[{"$nulls":3},"Utgift 4"]
[{"$nulls":3},"Utgift 5"]
["Totalt",null,{"$f":"SUBTOTAL(109,ExpSep.[Beløp])","v":{"v":0,"d":"0.00"}}]

{"sheet":"okt.","index":11,"n_rows":9,"n_cols":5,"rows_kept":9,"merged":[[0,0,0,2]]}
["UTGIFTER I OKTOBER",null,null,"Sammendrag","Tips"]
["Dato","Kjøpsordrenummer","Beløp","Kategori","Beskrivelse"]
[{"$f":"DATE(YEAR(TODAY()),10,10)","v":"2017-10-10"},"A-12345",null,"Utgift 1","Utstyr"]
[{"$f":"DATE(YEAR(TODAY()),10,21)","v":"2017-10-21"},"A-12346",null,"Utgift 2"]
[{"$nulls":3},"Utgift 2"]
[{"$nulls":3},"Utgift 3"]
[{"$nulls":3},"Utgift 4"]
[{"$nulls":3},"Utgift 5"]
["Totalt",null,{"$f":"SUBTOTAL(109,ExpOkt.[Beløp])","v":{"v":0,"d":"0.00"}}]

{"sheet":"nov.","index":12,"n_rows":9,"n_cols":5,"rows_kept":9,"merged":[[0,0,0,2]]}
["UTGIFTER I NOVEMBER",null,null,"Sammendrag","Tips"]
["Dato","Kjøpsordrenummer","Beløp","Kategori","Beskrivelse"]
[{"$f":"DATE(YEAR(TODAY()),11,14)","v":"2017-11-14"},"A-12345",null,"Utgift 1","Utstyr"]
[{"$f":"DATE(YEAR(TODAY()),11,21)","v":"2017-11-21"},"A-12346",null,"Utgift 2"]
[{"$nulls":3},"Utgift 2"]
[{"$nulls":3},"Utgift 3"]
[{"$nulls":3},"Utgift 4"]
[{"$nulls":3},"Utgift 5"]
["Totalt",null,{"$f":"SUBTOTAL(109,ExpNov.[Beløp])","v":{"v":0,"d":"0.00"}}]

{"sheet":"des.","index":13,"n_rows":9,"n_cols":5,"rows_kept":9,"merged":[[0,0,0,2]]}
["UTGIFTER I DESEMBER ",null,null,"Sammendrag","Tips"]
["Dato","Kjøpsordrenummer","Beløp","Kategori","Beskrivelse"]
[{"$f":"DATE(YEAR(TODAY()),12,2)","v":"2017-12-02"},"A-12345",{"v":201,"d":"201.00"},"Utgift 1","Utstyr"]
[{"$f":"DATE(YEAR(TODAY()),12,24)","v":"2017-12-24"},"A-12346",{"v":98,"d":"98.00"},"Utgift 2"]
[null,null,{"v":342,"d":"342.00"},"Utgift 2"]
[null,null,{"v":122,"d":"122.00"},"Utgift 3"]
[null,null,{"v":187,"d":"187.00"},"Utgift 4"]
[null,null,{"v":99,"d":"99.00"},"Utgift 5"]
["Totalt",null,{"$f":"SUBTOTAL(109,ExpDes.[Beløp])","v":{"v":1049,"d":"1,049.00"}}]